bitfinex/quotes_SOLUSD_20250922
["timestamp","ask_amount","ask_price","bid_price","bid_amount"]
[1758505166927,0.5,235.15,235.02,34.4]
[1758505167228,0.5,235.14,235.03,0.72]
[1758505167926,4.25296644,235.13,235.04,4.25459496]
[1758505168139,0.5,235.12,235.0,0.72]
[1758505168344,0.5,235.11,234.97,0.72]
[1758505168623,14.88538255,235.13,234.97,0.72]
[1758505168624,31.7,235.1,234.97,0.72]
[1758505168931,0.5,235.09,234.97,0.72]
[1758505169137,0.5,235.08,234.93,37.93658706]
[1758505169313,0.5,235.07,234.95,0.72]
[1758505169513,0.5,235.06,234.95,0.72]
[1758505170219,31.2,235.04,234.95,4.97611442]
[1758505170424,31.7,235.04,234.95,0.72]
[1758505170616,0.5,235.04,234.95,0.72]
[1758505171132,4.25441395,235.05,234.95,4.97613938]
[1758505171331,4.25441395,235.05,234.96,0.72]
[1758505171524,31.2,235.1,234.96,0.72]
[1758505171709,31.7,235.1,234.96,0.72]
[1758505172112,31.7,235.1,234.97,14.89551857]
[1758505172313,0.5,235.1,234.98,0.72]
[1758505172622,31.2,235.09,234.98,0.72]
[1758505172823,46.58731917,235.1,234.98,0.72]
[1758505173026,31.2,235.07,234.98,0.72]
[1758505173227,4.25354631,235.1,234.98,0.72]
[1758505173422,31.7,235.11,234.98,0.72]
[1758505173630,0.5,235.13,235.0,31.2]
[1758505173810,31.2,235.12,235.0,31.2]
[1758505174014,31.2,235.12,235.01,0.72]
[1758505174242,35.4531671,235.12,235.02,4.25495702]
[1758505174442,31.2,235.12,235.03,0.72]
[1758505175235,4.75299162,235.13,235.03,0.72]
[1758505175618,4.75299162,235.13,235.04,4.25459496]
[1758505175935,31.7,235.12,235.04,4.25459496]
[1758505176516,0.5,235.11,235.04,4.25459496]
[1758505177009,31.2,235.12,235.04,4.97459496]
[1758505177437,31.2,235.12,234.99,64.86]
[1758505177438,0.5,235.11,235.0,0.72]
[1758505177638,0.5,235.1,235.01,4.25513807]
[1758505177823,0.1,235.16,235.02,0.72]
[1758505178226,0.1,235.16,235.04,31.2]
[1758505178227,0.6,235.16,235.04,31.2]
[1758505178418,0.6,235.16,235.05,0.72]
[1758505179132,0.1,235.16,235.05,0.72]
[1758505179641,0.1,235.16,235.06,14.88981536]
[1758505179841,0.1,235.16,235.07,0.72]
[1758505180011,0.1,235.16,235.09,31.2]
[1758505180213,0.1,235.16,235.1,0.72]
[1758505180733,0.1,235.16,235.11,33.72]
[1758505180931,0.1,235.16,235.12,0.72]
[1758505181132,0.1,235.16,235.12,34.44]
[1758505181456,0.1,235.16,235.13,0.72]
[1758505181738,0.1,235.16,235.15,4.25260472]
[1758505182219,0.1,235.16,235.15,4.97260472]
[1758505183437,0.1,235.16,235.15,0.72]
[1758505183629,0.1,235.16,235.11,65.62]
[1758505183935,0.1,235.16,235.13,0.72]
[1758505184137,0.1,235.16,235.14,0.72]
[1758505184627,0.1,235.16,235.12,4.25305752]
[1758505184828,0.1,235.16,235.13,0.72]
[1758505185013,0.1,235.16,235.11,12.91599098]
[1758505185216,0.1,235.16,235.13,0.72]
[1758505185419,0.1,235.16,235.14,0.72]
[1758505185829,0.1,235.16,235.11,0.72]
[1758505186214,0.1,235.16,235.12,0.72]
[1758505186642,0.1,235.16,235.1,50.68446795]
[1758505186643,0.1,235.16,235.13,0.72]
[1758505187626,0.1,235.16,235.1,61.31824081]
[1758505187828,0.1,235.16,235.14,4.97274876]
[1758505188354,0.1,235.16,235.14,0.72]
[1758505188737,0.1,235.16,235.11,4.9731621]
[1758505189051,0.1,235.16,235.12,0.72]
[1758505189258,0.1,235.16,235.13,0.72]
[1758505189939,0.1,235.16,235.13,4.97292711]
[1758505190342,0.1,235.16,235.14,0.72]
[1758505190855,0.1,235.16,235.15,0.72]
[1758505194975,0.1,235.16,235.14,4.25269172]
[1758505195161,0.1,235.16,235.14,4.97269172]
[1758505195344,0.1,235.16,235.15,0.72]
[1758505196037,0.1,235.16,235.11,10.63301912]
[1758505196038,0.1,235.16,235.11,33.6]
[1758505196262,0.1,235.16,235.12,0.72]
[1758505196559,0.1,235.16,235.11,33.6]
[1758505196863,0.1,235.16,235.11,34.3]
[1758505197033,0.1,235.16,235.11,33.6]
[1758505197240,0.1,235.16,235.12,0.7]
[1758505197647,0.1,235.16,235.13,0.7]
[1758505198040,0.1,235.16,235.1,27.63830515]
[1758505198041,0.6,235.16,235.1,12.75102743]
[1758505198261,0.1,235.16,235.09,0.7]
[1758505198961,4.35244781,235.16,235.09,13.7140019]
[1758505199287,4.35244781,235.16,235.09,17.96769089]
[1758505199463,4.35244781,235.16,235.09,13.0140019]
[1758505199666,4.35244781,235.16,235.08,37.83384447]
[1758505200438,4.35244781,235.16,235.08,38.53384447]
[1758505200938,0.1,235.16,235.08,38.53384447]
[1758505202060,0.1,235.16,235.08,37.83384447]
[1758505202358,0.1,235.16,235.09,0.7]
[1758505203059,0.1,235.16,235.1,4.25350914]
[1758505203261,0.1,235.16,235.11,0.7]
[1758505203565,0.1,235.16,235.12,0.7]
[1758505204041,4.35248321,235.16,235.1,0.7]
[1758505204941,4.85248321,235.16,235.06,13.25282053]
[1758505205245,31.2,235.14,235.03,0.7]
[1758505205641,0.5,235.13,235.03,13.32247261]
[1758505205858,0.5,235.13,235.03,0.7]
[1758505206342,0.5,235.13,235.04,4.25459496]
[1758505206668,1.47519698,235.13,235.05,0.7]
[1758505206959,1.47519698,235.13,235.05,34.26]
[1758505207154,0.1,235.16,235.06,0.7]
[1758505207550,4.35245459,235.16,235.06,0.7]
[1758505207755,1.47534694,235.15,235.06,0.7]
[1758505208063,1.97534694,235.15,235.06,0.7]
[1758505208361,4.25296644,235.13,235.06,0.7]
[1758505208956,4.2527652,235.15,235.06,4.95421833]
[1758505209143,1.47551791,235.14,235.07,0.7]
[1758505210370,4.25263801,235.15,235.07,0.7]
[1758505210570,1.47598219,235.14,235.08,4.25387102]
[1758505210771,1.97598219,235.14,235.04,0.66]
[1758505211082,1.97598219,235.14,235.04,34.22]
[1758505211369,0.5,235.13,235.04,0.66]
[1758505211551,1.97598219,235.13,235.04,0.66]
[1758505211742,0.5,235.13,235.04,0.66]
[1758505212342,31.7,235.12,235.01,0.66]
[1758505212567,19.71825897,235.11,234.97,0.66]
[1758505212771,4.33161018,235.1,234.97,0.66]
[1758505212972,1.97611514,235.09,234.97,0.66]
[1758505214483,4.25387102,235.08,234.98,4.25568133]
[1758505214682,0.5,235.07,234.98,4.25568133]
[1758505214853,0.5,235.07,234.97,0.66]
[1758505215173,0.5,235.07,234.97,4.91585829]
[1758505215469,79.64854857,235.08,234.97,0.66]
[1758505215775,0.5,235.06,234.95,0.66]
[1758505215947,0.5,235.05,234.95,0.66]
[1758505216154,0.5,235.04,234.95,0.66]
[1758505216552,4.25477598,235.03,234.95,4.91622472]
[1758505216772,4.25477598,235.03,234.94,0.66]
[1758505216971,0.5,235.04,234.94,0.66]
[1758505217172,4.75463195,235.04,234.94,0.66]
[1758505217647,0.5,235.1,234.94,0.66]
[1758505217853,31.2,235.08,234.94,0.66]
[1758505218079,0.5,235.07,234.94,0.66]
[1758505218276,0.5,235.06,234.95,33.56]
[1758505218475,4.25405198,235.07,234.96,4.25604358]
[1758505218776,0.5,235.05,234.92,11.30192065]
[1758505218980,0.5,235.04,234.93,0.66]
[1758505219181,132.2,235.06,234.93,0.66]
[1758505219182,0.5,235.03,234.93,0.66]
[1758505219780,4.25495702,235.02,234.93,0.66]
[1758505219978,4.75495702,235.02,234.93,0.66]
[1758505220176,0.5,235.01,234.9,0.66]
[1758505221161,4.25531914,235.0,234.91,4.25694947]
[1758505221685,4.75520454,235.01,234.92,0.66]
[1758505222663,31.2,234.99,234.92,0.66]
[1758505222864,31.7,234.99,234.92,0.66]
[1758505223487,35.95557869,234.99,234.92,4.91667924]
[1758505223971,35.95557869,234.99,234.9,4.25705281]
[1758505224475,0.5,234.98,234.9,4.25705281]
[1758505225286,0.5,235.0,234.91,0.66]
[1758505225587,35.4557483,234.98,234.91,0.66]
[1758505225773,35.4557483,234.98,234.91,4.91691344]
[1758505226370,31.2,234.98,234.91,4.91691344]
[1758505226687,0.5,234.97,234.86,0.69]
[1758505226892,0.5,234.96,234.86,0.69]
[1758505227786,0.5,234.96,234.86,15.59249362]
[1758505227980,69.53580036,234.98,234.87,0.69]
[1758505228294,0.5,234.97,234.87,0.69]
[1758505229307,35.45580036,234.98,234.87,0.69]
[1758505230091,35.45580036,234.98,234.88,14.90122615]
[1758505230298,166.28,234.99,234.89,0.69]
[1758505230299,132.2,234.99,234.89,0.69]
[1758505231181,136.45553131,234.99,234.89,0.69]
[1758505232082,136.45553131,234.99,234.9,4.25713069]
[1758505232396,136.45553131,234.99,234.91,0.69]
[1758505233405,132.2,234.99,234.91,0.69]
[1758505233887,136.45555315,234.99,234.91,0.69]
[1758505234278,132.2,234.99,234.92,4.25676826]
[1758505234497,31.2,235.03,234.93,0.69]
[1758505234671,165.78,235.04,234.93,0.69]
[1758505235500,132.2,235.04,234.93,0.69]
[1758505235698,31.2,235.07,234.93,0.69]
[1758505235699,0.5,235.07,234.93,0.69]
[1758505235901,34.08,235.07,234.93,0.69]
[1758505236599,31.2,235.09,234.94,36.17945006]
[1758505236902,0.5,235.11,234.97,31.2]
[1758505237209,0.5,235.11,234.98,0.69]
[1758505237518,0.5,235.11,234.99,33.58]
[1758505237677,41.8302029,235.18,235.0,0.69]
[1758505237878,34.08,235.15,235.0,0.69]
[1758505238182,0.5,235.15,235.02,31.2]
[1758505238374,0.5,235.15,235.03,0.69]
[1758505238575,0.5,235.15,235.04,14.89108236]
[1758505238775,0.5,235.15,235.05,0.69]
[1758505238990,4.75229052,235.17,235.05,0.69]
[1758505239695,4.75229052,235.17,235.06,14.88981536]
[1758505239886,4.75229052,235.17,235.07,0.69]
[1758505240277,0.5,235.17,235.07,0.69]
[1758505240472,4.75226353,235.17,235.07,0.69]
[1758505241203,0.5,235.15,235.07,0.69]
[1758505241772,4.75265397,235.15,235.08,4.25387102]
[1758505242401,0.5,235.15,235.08,4.25387102]
[1758505242598,0.1,235.16,235.08,4.25387102]
[1758505242778,0.1,235.16,235.09,0.69]
[1758505243481,0.1,235.16,235.09,4.94358549]
[1758505244206,0.1,235.16,235.1,0.69]
[1758505245677,0.1,235.16,235.11,4.25332822]
[1758505245889,0.1,235.16,235.12,0.69]
[1758505246080,0.1,235.16,235.13,0.69]
[1758505247005,0.1,235.16,235.14,0.69]
[1758505247393,0.1,235.16,235.11,4.25332822]
[1758505247705,0.1,235.16,235.09,10.63422519]
[1758505247706,0.1,235.16,235.12,0.69]
[1758505248005,0.1,235.16,235.13,0.69]
[1758505249013,0.1,235.16,235.09,14.88791526]
[1758505249014,0.1,235.16,235.14,0.69]
[1758505249383,0.1,235.16,235.15,0.69]
[1758505255390,0.1,235.16,235.12,4.94309393]
[1758505255583,0.1,235.16,235.12,4.25309393]
[1758505255784,0.1,235.16,235.15,0.69]
[1758505256994,0.1,235.16,235.15,4.94260472]
[1758505257907,0.1,235.16,235.15,0.69]
[1758505258300,0.1,235.16,235.15,4.94260472]
[1758505261119,0.1,235.16,235.13,0.67]
[1758505261323,0.1,235.16,235.14,0.67]
[1758505261699,0.1,235.16,235.15,0.67]
[1758505263222,0.1,235.16,235.15,4.92260472]
[1758505263903,0.1,235.16,235.11,10.63295288]
[1758505263904,0.1,235.16,235.11,0.67]
[1758505264607,0.1,235.16,235.12,0.67]
[1758505265009,0.1,235.16,235.11,4.25331384]
[1758505265513,0.5,235.15,235.08,0.67]
[1758505265819,0.5,235.15,235.08,4.92386469]
[1758505266022,4.35245444,235.16,235.08,4.25386469]
[1758505266410,0.1,235.16,235.09,0.67]
[1758505267009,0.1,235.16,235.1,4.25350914]
[1758505267205,0.1,235.16,235.11,0.67]
[1758505267400,0.1,235.16,235.08,35.45370684]
[1758505267607,0.1,235.16,235.12,0.67]
[1758505267907,0.1,235.16,235.13,0.67]
[1758505268108,0.1,235.16,235.14,0.67]
[1758505268423,0.1,235.16,235.08,46.08838439]
[1758505268727,4.85245245,235.16,235.08,0.67]
[1758505269709,15.48351215,235.16,235.08,4.92385782]
[1758505269911,49.02351215,235.16,235.08,0.67]
[1758505270115,0.5,235.15,235.06,4.90405813]
[1758505270313,0.5,235.15,235.07,0.65]
[1758505271036,4.25278557,235.14,235.07,4.90399672]
[1758505271808,0.5,235.13,235.04,0.65]
[1758505272010,0.5,235.12,235.02,0.65]
[1758505272210,0.5,235.11,235.02,0.65]
[1758505272426,34.04,235.1,235.02,0.65]
[1758505273142,4.25369007,235.09,235.02,0.65]
[1758505273342,31.2,235.14,235.02,4.90486663]
[1758505273521,0.6,235.16,235.03,0.65]
[1758505273839,4.92631217,235.16,235.03,0.65]
[1758505274018,1.47452329,235.15,235.03,0.65]
[1758505274219,0.1,235.16,235.05,31.2]
[1758505274536,4.35245764,235.16,235.06,0.65]
[1758505275133,0.1,235.16,235.07,4.25405198]
[1758505275317,0.1,235.16,235.08,0.65]
[1758505277114,0.1,235.16,235.09,14.88791526]
[1758505277334,0.1,235.16,235.1,0.65]
[1758505278819,4.35244053,235.16,235.1,0.65]
[1758505279210,4.35244053,235.16,235.06,13.03772002]
[1758505279411,1.97987473,235.15,235.06,0.65]
[1758505279631,1.97987473,235.15,235.05,31.2]
[1758505279632,0.5,235.15,235.07,0.65]
[1758505280015,4.35244053,235.16,235.07,0.65]
[1758505280438,0.5,235.15,235.07,0.65]
[1758505281039,4.25278557,235.14,235.07,0.65]
[1758505281940,0.5,235.15,235.07,4.90402995]
[1758505282148,1.98170148,235.15,235.07,4.90402995]
[1758505282939,6.23442599,235.15,235.07,0.65]
[1758505283126,1.48170148,235.14,235.07,0.65]
[1758505283710,0.5,235.13,235.04,0.65]
[1758505283921,0.5,235.13,234.88,34.52]
[1758505283922,1.98170148,235.12,235.01,0.65]
[1758505284119,1.98170148,235.11,235.01,0.65]
[1758505284357,1.98170148,235.1,235.01,0.65]
[1758505285038,4.25369007,235.09,235.01,4.90511837]
[1758505285237,1.48103507,235.08,235.01,0.65]
[1758505285741,4.75369007,235.09,235.01,0.65]
[1758505285951,1.98102436,235.08,234.99,0.65]
[1758505286322,0.5,235.08,234.99,0.65]
[1758505286525,1.9804408,235.08,234.99,0.65]
[1758505286853,4.25423296,235.06,234.99,0.65]
[1758505287033,4.25423296,235.06,234.88,34.52]
[1758505287034,4.25423296,235.06,234.95,4.2560713]
[1758505287347,0.5,235.05,234.96,0.67]
[1758505287642,0.5,235.04,234.96,0.67]
[1758505288837,0.5,235.04,234.96,4.92595445]
[1758505289135,4.75463875,235.04,234.96,4.92595445]
[1758505289332,4.75463875,235.04,234.97,0.67]
[1758505289840,4.75463875,235.04,234.95,0.67]
[1758505290019,0.5,235.04,234.95,0.67]
[1758505290223,4.75464827,235.04,234.95,0.67]
[1758505291022,0.5,235.04,234.96,4.25604358]
[1758505291244,4.25442653,235.05,234.97,0.67]
[1758505291943,136.45442653,235.05,234.97,0.67]
[1758505292753,136.45442653,235.05,234.97,4.92571711]
[1758505293042,136.45442653,235.05,234.98,0.67]
[1758505293250,136.95442653,235.05,234.98,0.67]
[1758505293755,132.2,235.12,234.99,33.54]
[1758505294048,132.2,235.12,235.0,0.67]
[1758505294953,136.95328571,235.12,235.01,4.25513807]
[1758505295144,136.95328571,235.12,235.02,0.67]
[1758505295329,0.5,235.11,235.02,0.67]
[1758505296067,132.2,235.12,235.02,0.67]
[1758505296626,136.45329562,235.12,235.02,0.67]
[1758505296836,0.5,235.11,235.02,0.67]
[1758505297125,136.45329562,235.12,234.97,10.63949113]
[1758505297126,4.75350914,235.1,235.0,0.67]
[1758505297367,0.5,235.09,235.0,0.67]
[1758505297544,0.5,235.08,234.98,0.67]
[1758505297749,0.5,235.07,234.98,0.67]
[1758505297963,0.5,235.06,234.96,0.67]
[1758505298762,4.25441395,235.05,234.96,4.92603774]
[1758505298971,4.25441395,235.05,234.97,0.67]
[1758505299469,0.5,235.04,234.97,0.67]
[1758505299765,0.5,235.03,234.93,0.67]
[1758505300731,4.25495702,235.02,234.93,4.92653894]
[1758505300935,4.25495702,235.02,234.94,0.67]
[1758505301843,4.25495702,235.02,234.94,4.92625411]
[1758505302662,0.5,235.04,234.95,0.67]
[1758505302964,136.95481331,235.03,234.95,0.67]
[1758505303163,136.95481331,235.03,234.92,4.9266005]
[1758505303164,0.5,235.02,234.92,4.9266005]
[1758505303367,0.5,235.01,234.92,4.9266005]
[1758505303663,0.5,235.01,234.93,0.67]
[1758505304047,4.25531914,235.0,234.93,4.92654242]
[1758505304273,4.25531914,235.0,234.9,31.87]
[1758505304559,0.5,234.99,234.9,31.2]
[1758505304764,0.5,234.99,234.91,0.67]
[1758505305358,0.5,235.02,234.92,4.25676826]
[1758505305678,165.74,235.03,234.93,0.67]
[1758505305968,136.45494375,235.03,234.93,0.67]
[1758505306867,136.45494375,235.03,234.94,4.25640589]
[1758505307186,136.45494375,235.03,234.95,0.67]
[1758505307963,132.2,235.03,234.95,0.67]
[1758505308545,132.2,235.03,234.94,14.56942061]
[1758505309242,132.2,235.03,234.94,10.64101472]
[1758505310453,132.89,235.03,234.95,0.67]
[1758505311667,132.2,235.03,234.96,14.89615253]
[1758505311894,0.69,235.07,234.97,0.67]
[1758505312072,0.69,235.09,234.97,0.67]
[1758505312249,31.89,235.09,234.97,0.67]
[1758505312760,0.69,235.09,234.99,31.2]
[1758505313174,0.69,235.09,235.0,0.67]
[1758505313667,4.94372673,235.09,235.01,4.25513807]
[1758505313964,0.69,235.09,235.01,4.25513807]
[1758505314760,0.69,235.09,235.02,0.67]
[1758505315548,4.94370469,235.09,235.02,0.67]
[1758505315776,4.94370469,235.09,235.01,4.25513807]
[1758505315959,0.69,235.08,235.01,4.25513807]
[1758505316861,132.88,235.07,234.95,10.64041703]
[1758505317063,0.68,235.06,234.96,4.25604358]
[1758505317278,0.68,235.05,234.94,4.25623702]
[1758505317490,0.68,235.04,234.95,31.86]
[1758505317791,165.74,235.07,234.94,4.25623702]
[1758505317792,0.68,235.03,234.94,14.89725174]
[1758505317995,0.68,235.03,234.96,0.66]
[1758505318886,4.93486684,235.03,234.96,4.91598755]
[1758505319174,0.68,235.03,234.96,4.91598755]
[1758505319485,0.68,235.05,234.97,0.66]
[1758505320769,0.68,235.05,234.97,4.91578986]
[1758505320956,137.13416915,235.07,234.98,0.66]
[1758505321156,137.13409926,235.07,234.98,0.66]
[1758505321675,132.2,235.07,234.98,0.66]
[1758505321979,132.88,235.07,234.98,0.66]
[1758505322476,137.13406582,235.07,234.98,0.66]
[1758505322866,137.13406582,235.07,234.99,4.25550023]
[1758505323068,137.13406582,235.07,234.99,4.91550023]
[1758505323253,132.88,235.07,234.99,4.91550023]
[1758505323691,0.68,235.06,234.97,4.25577434]
[1758505323985,0.68,235.05,234.98,31.2]
[1758505324288,0.68,235.04,234.98,31.2]
[1758505324785,0.68,235.04,234.98,35.45555019]
[1758505325674,4.93463724,235.04,234.98,31.2]
[1758505325865,4.93463724,235.04,234.97,0.66]
[1758505326486,0.68,235.04,234.97,4.91579566]
[1758505328981,0.68,235.04,234.98,4.91553212]
[1758505329185,165.72,235.07,234.99,0.66]
[1758505329362,136.45405247,235.07,234.99,0.66]
[1758505329689,132.2,235.07,234.99,0.66]
[1758505330182,132.2,235.07,235.02,31.2]
[1758505330374,132.2,235.07,235.03,0.71]
[1758505330575,132.2,235.12,235.03,0.71]
[1758505331185,132.2,235.12,235.04,4.25459496]
[1758505331383,0.8,235.16,235.05,0.71]
[1758505331605,0.1,235.16,235.08,31.2]
[1758505331899,0.1,235.16,235.09,0.71]
[1758505332800,0.1,235.16,235.1,4.25350914]
[1758505333169,0.8,235.16,235.11,31.2]
[1758505335397,0.8,235.16,235.11,35.45330487]
[1758505336587,0.1,235.16,235.12,0.71]
[1758505336786,0.1,235.16,235.13,0.71]
[1758505336973,0.7,235.15,235.07,0.71]
[1758505337286,0.7,235.15,235.07,34.23]
[1758505337464,0.7,235.14,235.07,0.71]
[1758505338492,4.35243887,235.16,235.07,4.96394147]
[1758505338791,4.35243887,235.16,235.08,0.71]
[1758505338792,0.1,235.16,235.08,0.71]
[1758505340171,4.35249025,235.16,235.08,0.71]
[1758505340595,4.35249025,235.16,235.09,4.25369007]
[1758505340797,0.1,235.16,235.1,0.71]
[1758505342588,4.35243528,235.16,235.1,0.71]
[1758505342794,4.35243528,235.16,235.1,4.96349385]
[1758505343499,0.1,235.16,235.1,4.96349385]
[1758505344081,0.1,235.16,235.1,4.25349385]
[1758505344905,132.9,235.15,235.06,0.71]
[1758505345078,166.42,235.15,235.06,0.71]
[1758505345585,0.1,235.16,235.1,31.2]
[1758505345789,0.1,235.16,235.11,0.71]
[1758505346296,0.1,235.16,235.12,0.71]
[1758505346690,0.1,235.16,235.13,0.71]
[1758505347000,0.66,235.15,234.96,3.96608628]
[1758505347202,0.1,235.16,234.94,106.2634492]
[1758505347203,0.66,235.14,235.05,0.65]
[1758505347406,0.66,235.14,235.05,31.85]
[1758505347702,0.1,235.16,235.07,31.2]
[1758505347884,0.1,235.16,235.11,31.2]
[1758505348082,0.1,235.16,235.12,0.65]
[1758505348476,0.1,235.16,235.07,24.78]
[1758505348804,0.1,235.16,235.13,0.65]
[1758505349006,0.1,235.16,235.09,4.25366837]
[1758505349177,0.1,235.16,235.14,0.65]
[1758505349602,0.1,235.16,235.15,0.65]
[1758505350717,0.1,235.16,235.15,4.90260472]
[1758505351810,0.1,235.16,235.15,0.65]
[1758505357818,0.1,235.16,235.12,65.51]
[1758505358020,0.1,235.16,235.12,64.86]
[1758505358181,0.1,235.16,235.1,15.5369887]
[1758505358383,0.1,235.16,235.1,49.1969887]
[1758505358817,0.1,235.16,235.1,15.5369887]
[1758505358983,0.1,235.16,235.1,49.1969887]
[1758505359181,0.1,235.16,235.1,14.8869887]
[1758505359384,0.1,235.16,235.11,0.65]
[1758505359609,0.1,235.16,235.12,4.25314732]
[1758505359810,0.1,235.16,235.13,0.65]
[1758505360114,0.1,235.16,235.14,0.65]
[1758505360304,0.1,235.16,235.13,0.65]
[1758505361413,0.1,235.16,235.12,14.88601564]
[1758505361710,0.1,235.16,235.14,4.90272056]
[1758505362008,0.1,235.16,235.14,4.25272056]
[1758505362209,0.1,235.16,235.14,4.90272056]
[1758505363712,0.1,235.16,235.11,4.25332822]
[1758505363899,0.1,235.16,235.13,0.65]
[1758505364456,0.1,235.16,235.14,0.65]
[1758505364616,0.1,235.16,235.11,15.53664879]
[1758505364820,0.76,235.16,235.11,4.90332822]
[1758505364995,0.1,235.16,235.11,4.25332822]
[1758505365189,0.76,235.16,235.11,0.65]
[1758505365518,0.76,235.16,235.1,4.25348701]
[1758505365519,0.1,235.16,235.12,0.65]
[1758505366102,0.1,235.16,235.12,4.25299536]
[1758505366301,0.66,235.15,235.05,0.65]
[1758505366807,0.66,235.15,235.06,31.2]
[1758505366996,0.66,235.15,235.07,0.65]
[1758505367413,4.25278557,235.14,235.07,36.10388618]
[1758505368330,0.66,235.15,235.07,36.10388618]
[1758505369042,0.66,235.15,235.08,0.65]
[1758505369533,4.35259903,235.16,235.09,4.25369007]
[1758505369717,0.1,235.16,235.1,0.65]
[1758505370035,0.66,235.15,235.07,4.90397643]
[1758505370237,0.66,235.14,235.07,4.90397643]
[1758505370815,31.86,235.13,235.0,0.65]
[1758505371032,31.2,235.09,234.97,0.65]
[1758505371542,31.2,235.04,234.97,0.65]
[1758505371754,31.2,235.04,234.91,20.68]
[1758505372046,0.66,235.03,234.95,0.65]
[1758505372617,0.66,235.03,234.93,0.65]
[1758505373515,14.89234958,235.02,234.91,0.65]
[1758505373715,0.66,235.01,234.91,0.65]
[1758505374312,34.34,235.01,234.91,0.65]
[1758505374934,0.66,235.01,234.91,0.65]
[1758505375240,37.93545363,235.0,234.91,4.90688702]
[1758505375435,0.66,234.99,234.91,4.90688702]
[1758505375630,0.66,234.99,234.91,4.25688702]
[1758505375821,0.66,234.99,234.92,0.65]
[1758505376418,0.66,234.99,234.89,4.25724866]
[1758505376619,0.66,234.98,234.89,0.65]
[1758505377142,0.66,234.98,234.87,0.71]
[1758505377350,31.2,234.96,234.87,4.96762839]
[1758505377561,0.71,234.95,234.87,4.96762839]
[1758505378348,4.96637768,234.95,234.87,0.71]
[1758505378647,0.71,234.94,234.87,0.71]
[1758505379142,31.91,234.94,234.86,0.71]
[1758505379324,65.55,234.94,234.86,0.71]
[1758505379734,0.71,234.94,234.8,33.64]
[1758505379939,0.71,234.94,234.86,0.71]
[1758505380148,34.37,234.94,234.86,0.71]
[1758505380721,34.37,234.94,234.87,4.25767445]
[1758505380917,31.2,234.96,234.88,0.71]
[1758505381137,33.66,234.95,234.88,0.71]
[1758505381345,31.2,234.96,234.88,0.71]
[1758505381628,64.86,234.96,234.88,0.71]
[1758505382233,69.116096,234.96,234.89,4.25731193]
[1758505383661,31.2,234.96,234.9,0.71]
[1758505384054,165.84,234.99,234.9,0.71]
[1758505384354,132.2,234.98,234.9,0.71]
[1758505385239,0.71,234.97,234.87,0.71]